bitfinex-derivatives/quotes_BTCF0:USTF0_20241116
["timestamp","ask_amount","ask_price","bid_price","bid_amount"]
[1731753663192,0.00012204,91600.0,91594.0,0.25980335]
[1731753663389,0.00012204,91600.0,91590.0,0.0321]
[1731753663390,0.00012204,91600.0,91596.0,0.25980335]
[1731753664193,0.00012204,91600.0,91597.0,0.25980335]
[1731753664583,0.00012204,91600.0,91596.0,0.25980335]
[1731753665080,0.00012204,91600.0,91597.0,0.25980335]
[1731753665481,0.05307461,91599.0,91591.0,0.10299906]
[1731753665685,0.16359109,91597.0,91591.0,0.10299906]
[1731753666482,0.16359109,91595.0,91591.0,0.10299906]
[1731753666686,0.16359109,91596.0,91591.0,0.10299906]
[1731753667091,0.16359109,91597.0,91591.0,0.10299906]
[1731753667800,0.16359109,91597.0,91592.0,0.01023719]
[1731753668097,0.16359109,91597.0,91591.0,0.10299906]
[1731753668290,0.16359109,91597.0,91592.0,0.01023719]
[1731753668499,0.16359109,91597.0,91591.0,0.10299906]
[1731753669185,0.16359109,91595.0,91591.0,0.10299906]
[1731753669495,0.0530757,91596.0,91591.0,0.10299906]
[1731753669496,0.16359109,91596.0,91591.0,0.10299906]
[1731753669796,0.16359109,91597.0,91591.0,0.29826392]
[1731753670886,0.16359109,91597.0,91591.0,0.38054392]
[1731753671088,0.16359109,91597.0,91592.0,0.19526486]
[1731753671489,0.16359109,91597.0,91596.0,0.10299906]
[1731753672884,0.16359109,91599.0,91596.0,0.10299906]
[1731753673083,0.16359109,91599.0,91597.0,0.03]
[1731753673292,0.16371313,91600.0,91597.0,0.22526486]
[1731753673585,0.00012204,91600.0,91597.0,0.03]
[1731753673996,0.00012204,91600.0,91598.0,0.00012556]
[1731753675187,0.00012204,91600.0,91599.0,0.6852186]
[1731753675584,0.00012204,91600.0,91599.0,0.7177186]
[1731753675786,0.033,91614.0,91599.0,0.7177186]
[1731753675987,0.033,91614.0,91610.0,0.26028019]
[1731753676496,0.16359109,91620.0,91613.0,0.19516736]
[1731753676686,0.16359109,91620.0,91609.0,0.10299906]
[1731753676687,9.675e-05,91619.0,91612.0,0.19516736]
[1731753677089,9.675e-05,91619.0,91613.0,0.19516736]
[1731753678997,9.675e-05,91619.0,91616.0,0.10299906]
[1731753680698,9.675e-05,91619.0,91615.0,0.10299906]
[1731753680999,9.675e-05,91619.0,91618.0,0.06756183]
[1731753683191,9.675e-05,91619.0,91618.0,0.19051163]
[1731753683700,9.675e-05,91619.0,91618.0,0.55131163]
[1731753684105,9.675e-05,91619.0,91618.0,0.63359163]
[1731753686002,9.675e-05,91619.0,91618.0,0.8930275]
[1731753686304,9.675e-05,91619.0,91618.0,0.89296291]
[1731753686902,9.675e-05,91619.0,91618.0,0.63359163]
[1731753687205,9.675e-05,91619.0,91618.0,0.89296291]
[1731753687406,9.675e-05,91619.0,91618.0,0.63359163]
[1731753688000,9.675e-05,91619.0,91618.0,0.89294885]
[1731753688200,9.675e-05,91619.0,91618.0,0.75782519]
[1731753688504,9.675e-05,91619.0,91618.0,0.63359163]
[1731753690307,9.675e-05,91619.0,91618.0,0.5660298]
[1731753692204,9.675e-05,91619.0,91618.0,0.63359163]
[1731753693007,0.10924441,91619.0,91618.0,0.63359163]
[1731753694305,0.10924441,91619.0,91618.0,0.4837498]
[1731753694497,0.10924441,91619.0,91618.0,0.05538797]
[1731753694697,0.10924441,91619.0,91598.0,0.36092556]
[1731753694904,0.3608,91608.0,91598.0,0.36092556]
[1731753695134,0.50192,91608.0,91598.0,0.36092556]
[1731753695301,0.06756183,91604.0,91598.0,0.41482837]
[1731753695502,0.06756183,91599.0,91598.0,0.00012556]
[1731753696210,0.06756183,91604.0,91598.0,0.00012556]
[1731753696814,0.50248001,91608.0,91598.0,0.00012556]
[1731753696998,0.50192,91608.0,91598.0,0.00012556]
[1731753698606,0.61108077,91608.0,91598.0,0.00012556]
[1731753700900,0.3608,91599.0,91598.0,0.00012556]
[1731753701411,0.44196,91599.0,91598.0,0.00012556]
[1731753703502,0.44196,91599.0,91591.0,0.0051]
[1731753703503,1.06948,91599.0,91591.0,0.0051]
[1731753703715,1.06948,91599.0,91580.0,0.00163763]
[1731753703716,0.1030144,91587.0,91580.0,0.00163763]
[1731753704008,0.3608,91583.0,91580.0,0.00163763]
[1731753704407,0.3608,91583.0,91581.0,9.892e-05]
[1731753704611,0.08116,91582.0,91581.0,9.892e-05]
[1731753706311,0.3608,91583.0,91581.0,9.892e-05]
[1731753707109,0.08116,91590.0,91581.0,9.892e-05]
[1731753707313,0.3608,91594.0,91581.0,9.892e-05]
[1731753707520,0.08116,91593.0,91582.0,0.1030144]
[1731753708209,0.08116,91593.0,91581.0,9.892e-05]
[1731753708820,0.3608,91594.0,91588.0,0.1030144]
[1731753710313,0.0321,91605.0,91588.0,0.1030144]
[1731753710509,0.0321,91605.0,91588.0,0.29751072]
[1731753711421,0.0321,91605.0,91591.0,0.19449632]
[1731753712122,0.0321,91605.0,91590.0,0.19449632]
[1731753712307,0.0321,91605.0,91588.0,0.15712459]
[1731753713314,0.10917745,91594.0,91588.0,0.15712459]
[1731753715821,0.10917745,91594.0,91588.0,0.35162091]
[1731753716020,0.10917745,91594.0,91588.0,0.15712459]
[1731753716421,0.10917745,91594.0,91592.0,0.19449632]
[1731753716728,0.10917745,91594.0,91588.0,0.15712459]
[1731753717428,0.10917745,91594.0,91588.0,0.35162091]
[1731753717619,0.10917745,91594.0,91589.0,0.19449632]
[1731753718026,0.10917745,91594.0,91590.0,0.19449632]
[1731753718324,0.10917745,91594.0,91591.0,0.19449632]
[1731753718528,0.10917745,91594.0,91588.0,0.15712459]
[1731753718824,0.10917745,91594.0,91593.0,0.06759656]
[1731753722331,0.10917745,91594.0,91593.0,0.42839656]
[1731753723931,0.10917745,91594.0,91593.0,0.3608]
[1731753724815,0.10917745,91594.0,91593.0,0.55590176]
[1731753725319,0.10917745,91594.0,91593.0,0.3608]
[1731753725528,0.10917745,91594.0,91593.0,1.01213255]
[1731753726222,0.10917745,91594.0,91593.0,0.68678232]
[1731753726427,0.10917745,91594.0,91593.0,1.01199807]
[1731753727430,0.10917745,91594.0,91593.0,0.68601575]
[1731753727730,0.10917745,91594.0,91588.0,0.32521575]
[1731753727731,0.17677401,91594.0,91588.0,0.32521575]
[1731753727929,0.17677401,91594.0,91581.0,9.892e-05]
[1731753727930,0.42839656,91589.0,91581.0,9.892e-05]
[1731753728232,0.42839656,91589.0,91581.0,0.31570379]
[1731753728233,0.4844,91588.0,91581.0,0.31570379]
[1731753728439,0.06759656,91582.0,91581.0,9.892e-05]
[1731753729232,0.12759656,91582.0,91581.0,0.19531796]
[1731753729431,0.12759656,91582.0,91581.0,0.19531532]
[1731753729632,0.06759656,91582.0,91581.0,9.892e-05]
[1731753732728,0.06759656,91582.0,91581.0,0.19515296]
[1731753733133,0.06759656,91582.0,91581.0,9.892e-05]
[1731753733532,0.09869656,91582.0,91581.0,9.892e-05]
[1731753734826,0.35866,91582.0,91570.0,0.19505404]
[1731753735030,0.42839656,91571.0,91565.0,0.19505404]
[1731753735232,0.06759656,91566.0,91561.0,0.26032503]
[1731753735430,0.0311,91582.0,91581.0,0.42370344]
[1731753735723,0.50026,91582.0,91581.0,0.33090344]
[1731753735934,0.86106,91582.0,91581.0,0.33090344]
[1731753736328,0.86106,91582.0,91581.0,0.10148118]
[1731753736534,0.91457172,91582.0,91570.0,0.00013688]
[1731753736830,0.10310573,91571.0,91570.0,0.00013688]
[1731753737040,0.18470573,91571.0,91570.0,0.00013688]
[1731753738849,0.21700573,91571.0,91570.0,0.00013688]
[1731753739436,0.00056001,91582.0,91570.0,0.00013688]
[1731753739634,0.0816,91581.0,91570.0,0.00013688]
[1731753739938,0.10310573,91589.0,91570.0,0.00013688]
[1731753740161,0.0816,91588.0,91570.0,0.00013688]
[1731753740948,0.3608,91580.0,91570.0,0.00013688]
[1731753743142,0.44244,91580.0,91570.0,0.00013688]
[1731753746540,0.08164,91580.0,91572.0,0.3608]
[1731753749249,0.3608,91586.0,91572.0,0.3608]
[1731753749449,0.0822,91585.0,91572.0,0.3608]
[1731753750341,0.3608,91586.0,91572.0,0.3608]
[1731753750534,0.0822,91585.0,91572.0,0.3608]
[1731753753441,0.0822,91585.0,91574.0,0.1946499]
[1731753754048,0.0822,91585.0,91575.0,0.0307]
[1731753755746,0.16300575,91584.0,91575.0,0.0307]
[1731753756151,0.16300575,91582.0,91575.0,0.0307]
[1731753757049,0.16300575,91579.0,91575.0,0.0307]
[1731753757939,0.16300575,91581.0,91575.0,0.0307]
[1731753758149,0.16300575,91580.0,91575.0,0.0307]
[1731753758749,0.06764512,91576.0,91575.0,0.0307]
[1731753761746,0.23065087,91576.0,91575.0,0.0307]
[1731753762961,0.06764512,91576.0,91575.0,0.0307]
[1731753763254,0.05499227,91582.0,91575.0,0.0307]
[1731753763456,0.06764512,91584.0,91579.0,0.1953843]
[1731753764054,0.06,91583.0,91579.0,0.1953843]
[1731753764752,0.06,91583.0,91580.0,0.1953843]
[1731753764957,0.06764512,91581.0,91580.0,0.1953843]
[1731753765957,0.0822,91582.0,91580.0,0.1953843]
[1731753766352,0.0822,91582.0,91576.0,0.25953321]
[1731753766752,0.06764512,91581.0,91576.0,0.25953321]
[1731753767254,0.06764512,91581.0,91577.0,0.25953321]
[1731753767960,0.06764512,91581.0,91576.0,0.25953321]
[1731753768149,0.06764512,91581.0,91577.0,0.25953321]
[1731753769061,0.06764512,91581.0,91578.0,0.25953321]
[1731753770453,0.0822,91583.0,91579.0,0.25953321]
[1731753770958,0.24520575,91583.0,91578.0,0.25953321]
[1731753773163,0.16300575,91582.0,91578.0,0.25953321]
[1731753774952,0.16300575,91582.0,91577.0,0.25953321]
[1731753775162,0.16300575,91583.0,91578.0,0.25953321]
[1731753775568,0.0822,91584.0,91581.0,0.62033321]
[1731753775754,0.0822,91584.0,91583.0,0.25953321]
[1731753775956,0.0822,91584.0,91581.0,0.3608]
[1731753776160,0.0822,91584.0,91583.0,0.26068087]
[1731753776359,0.0822,91584.0,91581.0,0.3608]
[1731753776859,0.0822,91584.0,91582.0,0.3608]
[1731753777057,0.02528539,91585.0,91582.0,0.62149376]
[1731753777258,0.02528539,91585.0,91583.0,0.26069376]
[1731753777761,0.02528539,91585.0,91582.0,0.62149376]
[1731753777966,0.1956069,91583.0,91582.0,0.3608]
[1731753778161,0.05308752,91583.0,91582.0,0.3608]
[1731753778752,0.24957575,91584.0,91582.0,0.3608]
[1731753779056,0.05308752,91583.0,91582.0,0.3608]
[1731753779462,0.02528539,91585.0,91582.0,0.3608]
[1731753779463,0.05308752,91584.0,91582.0,0.3608]
[1731753781264,0.05308752,91584.0,91581.0,0.195491]
[1731753781565,0.05308752,91584.0,91579.0,0.195491]
[1731753781768,0.16370613,91580.0,91579.0,0.195491]
[1731753781961,0.02528539,91585.0,91576.0,0.0316]
[1731753781962,0.02528539,91585.0,91578.0,0.195491]
[1731753782162,0.16370778,91579.0,91578.0,0.556291]
[1731753782558,0.16370778,91580.0,91578.0,0.556291]
[1731753783162,0.16370778,91580.0,91578.0,0.3608]
[1731753784064,0.16370778,91581.0,91578.0,0.3608]
[1731753784265,0.16370778,91581.0,91579.0,0.19544266]
[1731753784972,0.16369226,91580.0,91578.0,0.55624266]
[1731753785263,0.16369226,91580.0,91578.0,0.19544266]
[1731753785860,0.22177362,91585.0,91576.0,0.0316]
[1731753786060,0.02528539,91585.0,91581.0,0.26065466]
[1731753786656,0.06764512,91582.0,91579.0,0.26065466]
[1731753787258,0.06764512,91582.0,91580.0,0.26065466]
[1731753787761,0.06764512,91582.0,91579.0,0.26065466]
[1731753787972,0.3608,91580.0,91579.0,0.19548209]
[1731753788158,0.3608,91580.0,91577.0,0.19548209]
[1731753788359,0.3608,91580.0,91576.0,0.19548209]
[1731753788360,0.06764512,91578.0,91576.0,0.19548209]
[1731753789064,0.06764512,91578.0,91575.0,0.0307]
[1731753789468,0.14900512,91578.0,91575.0,0.0307]
[1731753790666,0.3608,91580.0,91575.0,0.0307]
[1731753790866,0.3608,91580.0,91579.0,0.19546355]
[1731753791057,0.16368823,91582.0,91576.0,0.19546355]
[1731753791258,0.08136,91583.0,91576.0,0.26065466]
[1731753791463,0.08136,91583.0,91580.0,0.19543373]
[1731753791676,0.08136,91583.0,91581.0,0.19543373]
[1731753792277,0.1746356,91585.0,91577.0,0.26065466]
[1731753792478,0.1746356,91585.0,91584.0,0.19541697]
[1731753792880,0.1746356,91585.0,91583.0,0.19541697]
[1731753793070,0.0530915,91584.0,91575.0,0.0307]
[1731753793271,0.06764512,91579.0,91575.0,0.22611697]
[1731753793877,0.16366095,91581.0,91576.0,0.19541697]
[1731753794078,0.16366095,91581.0,91575.0,0.22611697]
[1731753794770,0.16366095,91582.0,91576.0,0.19541697]
[1731753794971,0.16366095,91581.0,91575.0,0.22611697]
[1731753795373,0.16366095,91583.0,91578.0,0.19541697]
[1731753795572,0.16366095,91584.0,91579.0,0.19541697]
[1731753795981,0.16366095,91583.0,91579.0,0.19541697]
[1731753796576,0.16366095,91583.0,91578.0,0.19541697]
[1731753796973,0.16366095,91583.0,91579.0,0.19541697]
[1731753797380,0.18929143,91585.0,91580.0,0.19541697]
[1731753797688,0.06764512,91584.0,91580.0,0.19541697]
[1731753798088,0.16366095,91582.0,91576.0,0.19541697]
[1731753798398,0.06764512,91579.0,91576.0,0.19541697]
[1731753798688,0.06764512,91579.0,91575.0,0.22611697]
[1731753798896,0.06764512,91579.0,91575.0,0.0307]
[1731753799588,0.23130607,91579.0,91575.0,0.0307]
[1731753799780,0.16366095,91578.0,91575.0,0.0307]
[1731753799980,0.16366095,91577.0,91575.0,0.0307]
[1731753800784,0.16366095,91576.0,91575.0,0.0307]
[1731753800993,0.05309329,91576.0,91575.0,0.0307]
[1731753801183,0.06,91578.0,91575.0,0.22608139]
[1731753802184,0.06764512,91579.0,91575.0,0.22608139]
[1731753802496,0.06764512,91579.0,91576.0,0.19538139]
[1731753804498,0.06764512,91579.0,91575.0,0.0307]
[1731753805996,0.06764512,91579.0,91575.0,0.22596324]
[1731753807193,0.06764512,91579.0,91576.0,0.19526324]
[1731753808195,0.05309475,91578.0,91575.0,0.0307]
[1731753808697,0.16364675,91576.0,91575.0,0.0307]
[1731753809793,0.06764512,91579.0,91575.0,0.0307]
[1731753809998,0.05309475,91578.0,91575.0,0.0307]
[1731753810884,0.08429475,91578.0,91575.0,0.0307]
[1731753811497,0.28078298,91578.0,91575.0,0.0307]
[1731753812095,0.22768823,91578.0,91575.0,0.0307]
[1731753812297,0.05309508,91577.0,91575.0,0.0307]
[1731753812598,0.08012,91576.0,91575.0,0.0307]
[1731753812799,0.13321508,91576.0,91575.0,0.0307]
[1731753815397,0.13321508,91576.0,91570.0,0.00013688]
[1731753815704,0.06764512,91571.0,91570.0,0.00013688]
[1731753815996,0.06764512,91571.0,91570.0,0.26079154]
[1731753817698,0.06764512,91571.0,91570.0,0.00013688]
[1731753818701,0.08012,91571.0,91570.0,0.26057205]
[1731753819195,0.14776512,91571.0,91570.0,0.00013688]
[1731753821800,0.3608,91578.0,91570.0,0.00013688]
[1731753821801,0.06764512,91577.0,91570.0,0.00013688]
[1731753821990,0.08012,91574.0,91571.0,0.26042393]
[1731753822501,0.08012,91574.0,91572.0,0.26042393]
[1731753822697,0.08012,91574.0,91570.0,0.00013688]
[1731753822698,0.08012,91574.0,91570.0,0.26056081]
[1731753823194,0.08012,91574.0,91572.0,0.26042393]
[1731753824002,0.08012,91574.0,91570.0,0.00013688]
[1731753824003,0.08012,91574.0,91571.0,0.26042393]
[1731753824300,0.16366206,91583.0,91572.0,0.06764512]
[1731753824496,0.08012,91582.0,91580.0,0.19534861]
[1731753824806,0.08012,91582.0,91581.0,0.0316]
[1731753825111,0.08012,91583.0,91581.0,0.0316]
[1731753825990,0.14776512,91583.0,91581.0,0.0316]
[1731753827007,0.06764512,91583.0,91582.0,0.03]
[1731753831198,0.12073396,91583.0,91582.0,0.03]
[1731753832804,0.05308884,91583.0,91582.0,0.03]
[1731753833006,0.18073396,91583.0,91582.0,0.03]
[1731753835509,0.06308884,91583.0,91582.0,0.09764512]
[1731753835803,0.29446962,91588.0,91582.0,0.16529024]
[1731753836003,0.1065049,91588.0,91583.0,0.26042393]
[1731753836210,0.1065049,91588.0,91587.0,0.06764512]
[1731753839212,0.1065049,91588.0,91587.0,0.12206544]
[1731753840302,0.1065049,91588.0,91587.0,0.44962544]
[1731753840506,0.1065049,91588.0,91587.0,0.77544377]
[1731753840708,0.1065049,91588.0,91587.0,1.10100431]
[1731753841213,0.1065049,91588.0,91587.0,0.77544377]
[1731753841411,0.1065049,91588.0,91587.0,0.44962544]
[1731753843107,0.1065049,91588.0,91587.0,0.12206544]
[1731753843312,0.1065049,91588.0,91587.0,0.05442032]
[1731753843615,0.1065049,91588.0,91584.0,0.07988]
[1731753843616,0.1065049,91588.0,91585.0,0.06764512]
[1731753844715,0.1065049,91588.0,91586.0,0.25954567]
[1731753844716,0.17415002,91588.0,91586.0,0.25954567]
[1731753845015,0.1065049,91588.0,91581.0,0.06764512]
[1731753845509,0.06,91587.0,91581.0,0.2623368]
[1731753846115,0.06,91587.0,91581.0,0.06764512]
[1731753846311,0.1065049,91588.0,91584.0,0.06764512]
[1731753847204,0.1065049,91588.0,91584.0,0.13529024]
[1731753847401,0.1065049,91588.0,91587.0,0.3608]
[1731753848813,0.1065049,91588.0,91587.0,0.36421269]
[1731753849217,0.07237825,91588.0,91587.0,0.36421269]
[1731753849817,0.07237825,91588.0,91587.0,0.3608]
[1731753851318,0.07237825,91588.0,91587.0,0.68836]
[1731753851507,0.07237825,91588.0,91587.0,0.88305168]
[1731753851710,0.07237825,91588.0,91587.0,0.90011399]
[1731753852217,0.07237825,91588.0,91587.0,0.70542231]
[1731753852418,0.1334386,91594.0,91587.0,0.70542231]
[1731753852419,0.1334386,91594.0,91588.0,0.32756]
[1731753852625,0.1334386,91594.0,91589.0,0.02729951]
[1731753852922,0.1334386,91594.0,91590.0,0.34766531]
[1731753853123,0.1334386,91594.0,91590.0,0.44419684]
[1731753854413,0.1334386,91594.0,91590.0,0.77175684]
[1731753854814,0.1334386,91594.0,91590.0,0.76834463]
[1731753855021,0.1334386,91594.0,91590.0,0.81892744]
[1731753855322,0.1334386,91594.0,91590.0,0.83598811]
[1731753855513,0.1334386,91594.0,91590.0,0.84622425]
[1731753855715,0.00059339,91596.0,91593.0,0.3608]
[1731753855926,0.00059339,91596.0,91595.0,0.13529024]
[1731753856128,0.00059339,91596.0,91595.0,0.56186671]
[1731753856427,0.00059339,91596.0,91595.0,0.88938671]
[1731753856816,0.00059339,91596.0,91595.0,0.87232604]
[1731753857015,0.00059339,91596.0,91595.0,0.88938566]
[1731753857424,0.00059339,91596.0,91595.0,1.61098566]
[1731753857926,0.00059339,91596.0,91595.0,1.62122135]
[1731753858133,0.10916077,91608.0,91595.0,1.62122135]
[1731753858134,0.10916077,91608.0,91596.0,0.32752]
[1731753858420,0.10916077,91608.0,91603.0,0.06764512]
[1731753858620,0.10916077,91608.0,91603.0,1.10297012]
[1731753858827,0.10916077,91608.0,91603.0,1.13545418]
[1731753859526,0.10916077,91608.0,91603.0,1.45942841]
[1731753860328,0.00635577,91607.0,91604.0,0.32748]
[1731753860621,0.00092746,91607.0,91605.0,0.76412716]
[1731753860826,0.08140102,91608.0,91606.0,0.38845588]
[1731753861030,0.08140102,91608.0,91607.0,0.7073213]
[1731753861215,0.08140102,91608.0,91607.0,1.10253303]
[1731753861415,0.08140102,91608.0,91607.0,1.03488587]
[1731753861830,0.08140102,91608.0,91607.0,1.03147395]
[1731753862533,0.08140102,91608.0,91607.0,1.35534145]
[1731753863226,0.08140102,91608.0,91607.0,1.35579828]
[1731753863527,0.08140102,91608.0,91607.0,1.02929169]
[1731753863728,0.08140102,91608.0,91607.0,1.0327032]
[1731753864225,0.08140102,91608.0,91607.0,0.7088357]
[1731753864415,0.08140102,91608.0,91607.0,0.70542419]
[1731753864612,0.08140102,91608.0,91607.0,0.70883569]
[1731753865027,0.08140102,91608.0,91607.0,0.70542415]
[1731753865214,0.08140102,91608.0,91607.0,1.03557669]
[1731753865419,0.08140102,91608.0,91607.0,1.35944419]
[1731753865723,0.08140102,91608.0,91607.0,1.03270315]
[1731753867021,0.08140102,91608.0,91607.0,1.35929772]
[1731753867219,0.08140102,91608.0,91607.0,1.03270315]
[1731753868123,0.08140102,91608.0,91607.0,0.70883565]
[1731753870334,0.08140102,91608.0,91607.0,0.38135565]
[1731753871630,0.08140102,91608.0,91607.0,0.70883565]
[1731753872040,0.08140102,91608.0,91607.0,0.38135565]
[1731753872426,0.08140102,91608.0,91607.0,0.575638]
[1731753873323,0.08140102,91608.0,91607.0,0.38135565]
[1731753873922,0.08140102,91608.0,91607.0,0.44900077]
[1731753874430,0.08140102,91608.0,91607.0,0.44900088]
[1731753874831,0.08140102,91608.0,91607.0,0.44558927]
[1731753875537,0.08140102,91608.0,91607.0,0.42853173]
[1731753875929,0.08140102,91608.0,91607.0,0.44558993]
[1731753876427,0.08140102,91608.0,91607.0,1.09571417]
[1731753876829,0.08140102,91608.0,91607.0,1.09912581]
[1731753877532,0.08140102,91608.0,91607.0,0.77525831]
[1731753877727,0.08140102,91608.0,91607.0,0.77525833]
[1731753878034,0.08140102,91608.0,91607.0,1.09938432]
[1731753878535,0.08140102,91608.0,91607.0,0.77525833]
[1731753878839,0.08140102,91608.0,91607.0,0.75820011]
[1731753879035,0.08140102,91608.0,91607.0,0.77525831]
[1731753880637,0.04728473,91608.0,91607.0,0.85509831]
[1731753880936,0.04728473,91608.0,91607.0,1.27150504]
[1731753881133,0.04728473,91608.0,91607.0,1.27150457]
[1731753881335,0.0140518,91610.0,91607.0,0.95003479]
[1731753881635,0.0140518,91610.0,91608.0,0.37401794]
[1731753881831,0.0140518,91610.0,91609.0,0.37401794]
[1731753882031,0.0140518,91610.0,91609.0,0.3467259]
[1731753882431,0.00371249,91610.0,91609.0,0.7358408]
[1731753882833,0.00371249,91610.0,91609.0,0.73242916]
[1731753883124,0.00371249,91610.0,91609.0,0.34331426]
[1731753883326,0.00371249,91610.0,91609.0,0.3535485]
[1731753883529,0.00371249,91610.0,91609.0,0.33649098]
[1731753883937,0.00371249,91610.0,91609.0,0.35354742]
[1731753884323,0.00371249,91610.0,91609.0,0.35554328]
[1731753885636,0.00371249,91610.0,91609.0,0.35554364]
[1731753885937,0.00371249,91610.0,91609.0,0.33848684]
[1731753886234,0.00371249,91610.0,91609.0,0.35554364]
[1731753886640,0.00371249,91610.0,91609.0,0.35554347]
[1731753887329,0.00371249,91610.0,91609.0,0.33848667]
[1731753887535,0.00371249,91610.0,91609.0,0.74628115]
[1731753887730,0.00371249,91610.0,91609.0,0.74596618]
[1731753888440,0.02408516,91613.0,91609.0,0.35515941]
[1731753888641,0.02408516,91613.0,91611.0,0.38982018]
[1731753888835,0.02408516,91613.0,91611.0,0.74497959]
[1731753889233,0.02408516,91613.0,91611.0,0.40005425]
[1731753889545,0.02408516,91613.0,91611.0,1.46658945]
[1731753890645,0.02408516,91613.0,91611.0,1.13418032]
[1731753891043,0.02408516,91613.0,91611.0,1.21402032]
[1731753891230,0.02408516,91613.0,91611.0,1.21403762]
[1731753891934,0.02408516,91613.0,91611.0,1.60388717]
[1731753892135,0.02408516,91613.0,91611.0,1.21403762]
[1731753892947,0.0051,91630.0,91611.0,1.72301549]
[1731753893143,0.0051,91636.0,91628.0,0.75327958]
[1731753893445,0.06497185,91640.0,91628.0,0.77339856]
[1731753895246,0.06497185,91640.0,91628.0,0.77339677]
[1731753896538,0.06497185,91640.0,91628.0,1.0980089]
[1731753896842,0.06497185,91640.0,91628.0,0.77339677]
[1731753897042,0.06497185,91640.0,91628.0,0.75634084]
[1731753897242,0.06497185,91640.0,91628.0,0.77339672]
[1731753897645,0.06497185,91640.0,91628.0,0.75634084]
[1731753897949,0.06497185,91640.0,91628.0,0.77339677]
[1731753898144,0.06497185,91640.0,91628.0,0.7836302]
[1731753898346,0.16527509,91634.0,91628.0,0.50091869]
[1731753898848,0.00167989,91634.0,91628.0,0.69566324]
[1731753899043,0.00167989,91634.0,91628.0,0.50091869]
[1731753899347,0.16527509,91634.0,91628.0,0.50091869]
[1731753899547,0.1635952,91633.0,91628.0,0.50091869]
[1731753900348,0.1635952,91633.0,91628.0,0.58075869]
[1731753900551,0.05498248,91629.0,91628.0,0.01705593]
[1731753900749,0.05498248,91629.0,91620.0,0.3608]
[1731753901048,0.06764512,91624.0,91621.0,0.01705798]
[1731753901238,0.00192455,91629.0,91622.0,0.01705825]
[1731753901239,0.11845793,91623.0,91622.0,0.01705825]
[1731753901955,0.11846295,91623.0,91622.0,0.01705825]
[1731753902845,0.11846295,91623.0,91620.0,0.41515885]
[1731753903040,0.11846295,91623.0,91622.0,0.0847034]
[1731753903041,0.0654,91623.0,91622.0,0.0847034]
[1731753906351,0.0654,91623.0,91622.0,0.08470311]
[1731753906854,0.0654,91623.0,91622.0,0.01705756]
[1731753907952,0.0654,91623.0,91622.0,0.3416309]
[1731753908146,0.0654,91623.0,91622.0,0.01705665]
[1731753908451,0.0654,91623.0,91622.0,0.01705747]
[1731753908847,0.0654,91623.0,91622.0,0.34559825]
[1731753909554,0.0654,91623.0,91622.0,0.67016478]
[1731753910259,0.0654,91623.0,91622.0,0.01705663]
[1731753910444,0.0654,91623.0,91622.0,0.67046153]
[1731753910645,0.0654,91623.0,91622.0,0.01705663]
[1731753911057,0.0654,91623.0,91622.0,0.02046808]
[1731753911260,0.0654,91623.0,91622.0,0.34503461]
[1731753911652,0.0654,91623.0,91622.0,0.02046808]
[1731753912447,0.0654,91623.0,91622.0,0.34503461]
[1731753912659,0.0654,91623.0,91622.0,0.02046808]
[1731753913167,0.0654,91623.0,91622.0,0.34503461]
[1731753913349,0.0654,91623.0,91622.0,0.02046808]
[1731753915048,0.0654,91623.0,91622.0,0.01705663]
[1731753915547,0.16833393,91623.0,91620.0,0.3608]
[1731753915746,0.32744,91622.0,91621.0,0.19488155]
[1731753915953,0.32744,91622.0,91620.0,0.19468155]
[1731753916158,0.68824,91621.0,91611.0,0.0051]
[1731753916458,0.10293393,91616.0,91612.0,0.01705907]
[1731753916653,0.18277393,91616.0,91613.0,0.01705907]
[1731753916853,0.32744,91615.0,91608.0,0.0051]
[1731753917054,0.32744,91615.0,91607.0,8.661e-05]
[1731753917248,0.18277393,91616.0,91607.0,8.661e-05]
[1731753918459,0.07984,91616.0,91607.0,8.661e-05]
[1731753920063,0.1,91620.0,91607.0,8.661e-05]
[1731753920278,0.07984,91619.0,91607.0,8.661e-05]
[1731753920477,0.16352253,91616.0,91607.0,8.661e-05]
[1731753920880,0.16352253,91617.0,91607.0,8.661e-05]
[1731753922590,0.16352253,91618.0,91607.0,8.661e-05]
[1731753923688,0.16352253,91617.0,91607.0,8.661e-05]
[1731753923989,0.16352253,91611.0,91607.0,8.661e-05]
[1731753924191,0.19462253,91610.0,91607.0,8.661e-05]
[1731753924388,0.08417637,91610.0,91607.0,8.661e-05]
[1731753924582,0.52181753,91610.0,91607.0,8.661e-05]
[1731753924985,0.35858,91610.0,91607.0,8.661e-05]
[1731753925687,0.46151393,91610.0,91607.0,8.661e-05]
[1731753929979,0.32748,91609.0,91607.0,8.661e-05]
[1731753930179,0.07984,91608.0,91607.0,8.661e-05]
[1731753930381,0.40732,91608.0,91607.0,8.661e-05]
[1731753930589,0.80732,91608.0,91607.0,8.661e-05]
[1731753930789,0.80732,91608.0,91603.0,0.0051]
[1731753930997,0.46373393,91604.0,91596.0,0.0051]
[1731753931189,0.46373393,91604.0,91589.0,0.0355]
[1731753931190,0.10293393,91595.0,91589.0,0.0355]
[1731753931491,0.00566001,91608.0,91594.0,0.3608]
[1731753931692,0.02183833,91610.0,91594.0,0.3608]
[1731753931987,0.02183833,91610.0,91600.0,0.00013541]
[1731753934195,0.07984,91609.0,91600.0,0.00013541]
[1731753935094,0.3608,91601.0,91600.0,0.00013541]
[1731753935700,0.68832,91601.0,91600.0,2.087e-05]
[1731753936086,0.3608,91601.0,91600.0,2.087e-05]
[1731753936288,0.68832,91601.0,91600.0,2.087e-05]
[1731753937892,0.16320513,91606.0,91600.0,2.087e-05]
[1731753938094,0.07984,91601.0,91600.0,2.087e-05]
[1731753938395,0.07984,91602.0,91600.0,2.087e-05]
[1731753940195,0.07984,91601.0,91600.0,2.087e-05]
[1731753945900,0.40736,91601.0,91600.0,2.087e-05]
[1731753948803,0.76816,91601.0,91600.0,2.087e-05]
[1731753950504,0.82124269,91601.0,91600.0,2.087e-05]
[1731753950704,0.49372269,91601.0,91600.0,2.087e-05]
[1731753950903,0.68984691,91601.0,91600.0,2.087e-05]
[1731753951093,1.0173635,91601.0,91600.0,2.087e-05]
[1731753951297,0.82124269,91601.0,91600.0,2.087e-05]
[1731753952097,0.49372269,91601.0,91600.0,2.087e-05]
[1731753952500,0.13292269,91601.0,91600.0,2.087e-05]
[1731753952801,0.49372269,91601.0,91600.0,2.087e-05]
[1731753953398,0.51556797,91601.0,91600.0,2.087e-05]
[1731753953709,0.51556784,91601.0,91600.0,2.087e-05]
[1731753958399,0.5155689,91601.0,91600.0,2.087e-05]
[1731753958599,0.62606758,91601.0,91600.0,2.087e-05]
[1731753958800,0.69369213,91601.0,91600.0,2.087e-05]
[1731753960207,0.53010983,91601.0,91600.0,2.087e-05]
[1731753961011,0.58319386,91601.0,91600.0,2.087e-05]
[1731753961207,0.53010983,91601.0,91600.0,2.087e-05]